Workbook

Sheet sheet1 (2) (hidden)
A1: １．北海道の旅客施設等の交通バリアフリー化の状況
B3: （１） 鉄軌道駅（停留所）の段差への対応状況
AC4: （令和4年3月31日現在）
F5: 総駅数 | K5: １日あたりの平均利用者数が３千人以上及び重点整備地域内の生活関連施設に位置づけられた2千人以上3千人未満の駅数（A) | P5: 段差が解消されている（移動円滑化基準第４条及び第１８条の２に適合している）駅数
U7: うち３千人及び重点整備地域内の生活関連施設に位置づけられた2千人以上3千人未満以上の駅数(B) | Z7: （A）に対する割合（％） (B／A）＊１００
A9: 全 国 | F9: 9379 | K9: 3348 | P9: 4734 | U9: 3135 | Z9: 0.9363799283
A10: 北海道 | F10: （鉄道） | I10: 353 | K10: 41 | P10: 53 | U10: 35 | Z10: 0.8536585366
F11: （地下鉄） | I11: 46 | K11: 46 | P11: 43 | U11: 43 | Z11: 0.9347826087
F12: （路面） | I12: 49 | K12: 7 | P12: 18 | U12: 4 | Z12: 0.5714285714
F13: 448 | K13: 94 | P13: 114 | U13: 82 | Z13: 0.8723404255
A15: （注） | D15: １．新幹線が乗り入れている在来線の駅であって、在来線の駅を管理する事業者が新幹線の駅も管理する場合、
D16: 当該在来線の駅に新幹線の駅を含み、全体で１駅として計上
B18: （２） 鉄軌道車両のバリアフリー化整備状況
AR19: （令和4年3月31日現在）
F20: 事業の用に供しているもの | P20: 移動円滑化基準に適合したもの | AA20: 車椅子 スペースの ある編成数 | AF20: 車椅子対応 便所のある 編成数 | AK20: 案内装置の ある編成数 | AP20: 車両間転落 防止設備の ある編成数
F22: 編成数 | K22: 車両数 | P22: 編成数 | U22: 車両数
A23: 全 国 | F23: 11650 | K23: 52535 | P23: 5032 | U23: 27545 | Z23: 7266 | AE23: 3466 | AJ23: 7799 | AO23: 9112
B24: 〔編成総数又は車両総数に対する割合〕 | AE24: 5169
P25: 0.4319313305 | U25: 0.5243171219 | Z25: 0.6236909871 | AE25: 0.670535887 | AJ25: 0.6694420601 | AO25: 0.7821459227
A26: 北海道 | F26: （鉄道） | I26: 365 | K26: 951 | P26: 95 | R26: 0.2602739726 | U26: 162 | W26: 0.1703470032 | Z26: 95 | AB26: 0.2602739726 | AE26: 166 | AG26: 0.4547945205 | AJ26: 311 | AL26: 0.8520547945 | AO26: 117 | AQ26: 0.3205479452
B27: 〔編成総数又は車両総数に対する割合〕 | F27: （地下鉄） | I27: 64 | K27: 368 | P27: 64 | R27: 1 | U27: 368 | W27: 1 | Z27: 64 | AB27: 1 | AE27: 0 | AG27: 0 | AJ27: 64 | AL27: 1 | AO27: 64 | AQ27: 1
F28: （路面） | I28: 68 | K28: 78 | P28: 14 | R28: 0.2058823529 | U28: 24 | W28: 0.3076923077 | Z28: 15 | AB28: 0.2205882353 | AE28: 0 | AG28: 0 | AJ28: 66 | AL28: 0.9705882353 | AO28: 0 | AQ28: 0
F29: 497 | K29: 1397 | P29: 173 | R29: 0.3480885312 | U29: 554 | W29: 0.3965640659 | Z29: 174 | AB29: 0.3501006036 | AE29: 166 | AG29: 0.3340040241 | AJ29: 441 | AL29: 0.8873239437 | AO29: 181 | AQ29: 0.3641851107
A31: （注） | D31: １．車椅子対応便所のある編成数の（ ）内の数字は便所のある編成数を、編成総数に対する割合は
D32: 便所のある編成数に対する割合を示す

Sheet バリ１．（１）（２）
A1: １．北海道の旅客施設等の交通バリアフリー化の状況
B3: （１） 鉄軌道駅（停留所）の段差への対応状況
AC4: （令和6年3月31日現在）
F5: 総駅数 | K5: １日あたりの平均利用者数が３千人以上及び重点整備地域内の生活関連施設に位置づけられた２千人以上３千人未満の駅数（A) | P5: 段差が解消されている（移動円滑化基準第４条及び第１８条の２に適合している）駅数
U7: うち３千人以上及び重点整備地域内の生活関連施設に位置づけられた２千人以上３千人未満の駅数(B) | Z7: （A）に対する割合（％） (B／A）＊１００
A9: 全 国 | F9: 9407 | K9: 3546 | P9: 4921 | U9: 3331 | Z9: =U9/K9 -> 0.9393683023
A10: 北海道 | F10: （鉄道） | I10: 340 | K10: 44 | P10: 56 | U10: 41 | Z10: =U10/K10 -> 0.9318181818
F11: （地下鉄） | I11: 46 | K11: 46 | P11: 44 | U11: 44 | Z11: =U11/K11 -> 0.9565217391
F12: （路面） | I12: 50 | K12: 7 | P12: 19 | U12: 4 | Z12: =U12/K12 -> 0.5714285714
F13: =SUM(F10:J12) -> 436 | K13: =SUM(K10:O12) -> 97 | P13: =SUM(P10:T12) -> 119 | U13: =SUM(U10:Y12) -> 89 | Z13: =U13/K13 -> 0.9175257732
A15: （注） | D15: １．新幹線が乗り入れている在来線の駅であって、在来線の駅を管理する事業者が新幹線の駅も管理する場合、
D16: 当該在来線の駅に新幹線の駅を含み、全体で１駅として計上
B18: （２） 鉄軌道車両のバリアフリー化整備状況
AR19: =AC4 -> （令和6年3月31日現在）
F20: 事業の用に供しているもの | P20: 移動円滑化基準に適合したもの | AA20: 車椅子 スペースの ある編成数 | AF20: 車椅子対応 便所のある 編成数 | AK20: 案内装置の ある編成数 | AP20: 車両間転落 防止設備の ある編成数
F22: 編成数 | K22: 車両数 | P22: 編成数 | U22: 車両数
A23: 全 国 | F23: 11403 | K23: 51868 | P23: 5658 | U23: 31047 | Z23: 7709 | AE23: 3636 | AJ23: 8234 | AO23: 9064
B24: 〔編成総数又は車両総数に対する割合〕 | AE24: 5130
P25: =P23/F23 -> 0.4961852144 | U25: =U23/K23 -> 0.5985771574 | Z25: =Z23/F23 -> 0.6760501622 | AE25: =AE23/AE24 -> 0.7087719298 | AJ25: =AJ23/F23 -> 0.7220906779 | AO25: =AO23/F23 -> 0.7948785407
A26: 北海道 | F26: （鉄道） | I26: 363 | K26: 919 | P26: 110 | R26: =P26/I26 -> 0.303030303 | U26: 127 | W26: =U26/K26 -> 0.1381936888 | Z26: 130 | AB26: =Z26/I26 -> 0.3581267218 | AE26: 200 | AG26: =AE26/I26 -> 0.5509641873 | AJ26: 325 | AL26: =AJ26/I26 -> 0.8953168044 | AO26: 130 | AQ26: =AO26/I26 -> 0.3581267218
B27: 〔編成総数又は車両総数に対する割合〕 | F27: （地下鉄） | I27: 64 | K27: 368 | P27: 64 | R27: =P27/I27 -> 1 | U27: 368 | W27: =U27/K27 -> 1 | Z27: 64 | AB27: =Z27/I27 -> 1 | AE27: 0 | AG27: =AE27/I27 -> 0 | AJ27: 64 | AL27: =AJ27/I27 -> 1 | AO27: 64 | AQ27: =AO27/I27 -> 1
F28: （路面） | I28: 68 | K28: 79 | P28: 18 | R28: =P28/I28 -> 0.2647058824 | U28: 29 | W28: =U28/K28 -> 0.3670886076 | Z28: 19 | AB28: =Z28/I28 -> 0.2794117647 | AE28: 0 | AG28: =AE28/I28 -> 0 | AJ28: 66 | AL28: =AJ28/I28 -> 0.9705882353 | AO28: 0 | AQ28: =AO28/I28 -> 0
F29: =SUM(I26:J28) -> 495 | K29: =SUM(K26:O28) -> 1366 | P29: =SUM(P26:Q28) -> 192 | R29: =P29/F29 -> 0.3878787879 | U29: =SUM(U26:V28) -> 524 | W29: =U29/K29 -> 0.383601757 | Z29: =SUM(Z26:AA28) -> 213 | AB29: =Z29/F29 -> 0.4303030303 | AE29: =SUM(AE26:AF28) -> 200 | AG29: =AE29/F29 -> 0.404040404 | AJ29: =SUM(AJ26:AK28) -> 455 | AL29: =AJ29/F29 -> 0.9191919192 | AO29: =SUM(AO26:AP28) -> 194 | AQ29: =AO29/F29 -> 0.3919191919
A31: （注） | D31: １．車椅子対応便所のある編成数の（ ）内の数字は便所のある編成数を、編成総数に対する割合は
D32: 便所のある編成数に対する割合を示す

Sheet バリ１．（３）（４）（５）
A2: （３） 乗合バス車両の移動円滑化基準適合車両
AL3: （令和6年3月31日現在）
A4: 項 目 | E4: 総車両数 | H4: 移動円滑化基準に適合した車両 | Z4: 移動円滑化基準に適合していない車両
H5: 計 | K5: ノンステップバス | N5: ワンステップバス | Q5: 計 | T5: その他の車両 | Z5: 計 | AC5: 基準適用除外 認定車両数 | AH5: その他の車両
T6: スロープ板を備えたもの | W6: リフトを備えたもの | AC6: 計 | AF6: うちスロープ板又は リフトを備えたもの | AH6: 計 | AK6: うちリフトを備えたもの
A7: 年度内供用 | E7: 153 | H7: =SUM(K7:S8) -> 96 | K7: 70 | N7: 20 | Q7: =SUM(T7:Y8) -> 6 | T7: 5 | W7: 1 | Z7: =SUM(AC7,AH7) -> 57 | AC7: 53 | AF7: 3 | AH7: 4 | AK7: 0
A8: 開始車両数
A9: 年度内供用 | E9: 232 | H9: =SUM(K9:S10) -> 102 | K9: 36 | N9: 63 | Q9: =SUM(T9:Y10) -> 3 | T9: 1 | W9: 2 | Z9: =SUM(AC9,AH9) -> 130 | AC9: 72 | AF9: 3 | AH9: 58 | AK9: 0
A10: 廃止車両数
A11: 年度末 | E11: 3151 | H11: =SUM(K11:S12) -> 2218 | K11: 1178 | N11: 1032 | Q11: =SUM(T11:Y12) -> 8 | T11: 4 | W11: 4 | Z11: =SUM(AC11,AH11) -> 933 | AC11: 687 | AF11: 29 | AH11: 246 | AK11: 0
A12: 車両数
A15: （４） 乗合事業のノンステップ・ワンステップバスの導入状況
A17: 運輸局名 | E17: 支局名 | I17: ノンステップバス | R17: ワンステップバス | AA17: リフト付バス
I18: 移動円滑化 | R18: 移動円滑化 | AA18: 移動円滑化
I19: 適合車両数 | R19: 適合車両数 | AA19: 適合車両数
I20: 3年 | L20: 4年 | O20: 5年 | R20: =$I$20 -> 3年 | U20: =$L$20 -> 4年 | X20: =$O$20 -> 5年 | AA20: =$I$20 -> 3年 | AD20: =$L$20 -> 4年 | AG20: =$O$20 -> 5年
I21: 度末 | L21: 度末 | O21: 度末 | R21: 度末 | U21: 度末 | X21: 度末 | AA21: 度末 | AD21: 度末 | AG21: 度末
A22: 北海道 | E22: 札 幌 | I22: 500 | L22: 550 | O22: 580 | R22: 772 | U22: 747 | X22: 722 | AA22: 2 | AD22: 3 | AG22: 2
E23: 函 館 | I23: 143 | L23: 135 | O23: 130 | R23: 22 | U23: 21 | X23: 24 | AA23: 0 | AD23: 1 | AG23: 1
E24: 旭 川 | I24: 194 | L24: 188 | O24: 185 | R24: 80 | U24: 83 | X24: 82 | AA24: 1 | AD24: 1 | AG24: 1
E25: 室 蘭 | I25: 87 | L25: 87 | O25: 106 | R25: 92 | U25: 92 | X25: 78 | AA25: 0 | AD25: 0 | AG25: 0
E26: 釧 路 | I26: 55 | L26: 63 | O26: 64 | R26: 35 | U26: 30 | X26: 30 | AA26: 0 | AD26: 0 | AG26: 0
E27: 帯 広 | I27: 79 | L27: 78 | O27: 79 | R27: 31 | U27: 31 | X27: 28 | AA27: 0 | AD27: 0 | AG27: 0
E28: 北 見 | I28: 34 | L28: 31 | O28: 34 | R28: 79 | U28: 73 | X28: 68 | AA28: 0 | AD28: 0 | AG28: 0
A29: 計 | I29: 1092 | L29: 1132 | O29: =SUM(O22:Q28) -> 1178 | R29: 1111 | U29: 1077 | X29: =SUM(X22:Z28) -> 1032 | AA29: 3 | AD29: 5 | AG29: =SUM(AG22:AI28) -> 4
A30: 導入率（％） | I30: 33.19148936 | L30: 34.57544288 | O30: =O29/E11*100 -> 37.38495716 | R30: 33.76899696 | U30: 32.89554062 | X30: =X29/E11*100 -> 32.75150746 | AA30: 0.09118541033 | AD30: 0.1527183873 | AG30: =AG29/E11*100 -> 0.1269438274
A33: （５） 福祉タクシーの導入状況
AG34: （単位：台）
J35: ３０年度末 | N35: 元年度末 | R35: 2年度末 | V35: 3年度末 | Z35: 4年度末 | AD35: 5年度末
A36: 車いす専用車 | J36: 1647 | N36: 1470 | R36: 1655 | V36: 1726 | Z36: 1279 | AD36: 1720
A37: 寝台専用車 | J37: 9 | N37: 18 | R37: 24 | V37: 26 | Z37: 19 | AD37: 30
A38: 兼用車 | J38: 237 | N38: 255 | R38: 264 | V38: 253 | Z38: 173 | AD38: 191
A39: 回転シート等 | J39: 130 | N39: 120 | R39: 106 | V39: 100 | Z39: 96 | AD39: 70
A40: 計 | J40: 2023 | N40: 1863 | R40: 2049 | V40: 2105 | Z40: 1567 | AD40: =SUM(AD36:AG39) -> 2011
A42: （注） | C42: １．「兼用車」は、寝台を使用している者及び車いす使用者のいずれをも輸送することができる車両
C43: ２．３０年度末以降の「車いす専用車」に、ユニバーサルデザインタクシーを含む

Sheet バリ１．（６）（７）
A2: （６）バスターミナルのバリアフリー化の状況
B4: 【段差の解消】
F5: 総施設数 | L5: 移動円滑化基準に 適合した旅客施設数 | R5: 道内における 達成率 | X5: 全国の 達成率
B6: 令和元年度 | F6: 10 | L6: 9 | R6: 0.9 | X6: 0.951
B7: 令和2年度 | F7: 10 | L7: 9 | R7: 0.9 | X7: 0.944
B8: 令和3年度 | F8: 14 | L8: 12 | R8: 0.8571428571 | X8: 0.929
B9: 令和4年度 | F9: 14 | L9: 12 | R9: 0.8571428571 | X9: 0.932
B10: 令和5年度 | F10: 13 | L10: 11 | R10: =L10/F10 -> 0.8461538462 | X10: 0.93
B12: 【視覚障害者用ブロックの設置】
F13: 総施設数 | L13: 移動円滑化基準に 適合した旅客施設数 | R13: 道内における 達成率 | X13: 全国の 達成率
B14: =$B$6 -> 令和元年度 | F14: 10 | L14: 9 | R14: 0.9 | X14: 0.976
B15: =$B$7 -> 令和2年度 | F15: 10 | L15: 9 | R15: 0.9 | X15: 0.972
B16: =$B$8 -> 令和3年度 | F16: 14 | L16: 12 | R16: 0.8571428571 | X16: 0.905
B17: =$B$9 -> 令和4年度 | F17: 14 | L17: 12 | R17: 0.8571428571 | X17: 0.864
B18: =$B$10 -> 令和5年度 | F18: 13 | L18: 11 | R18: =L18/F18 -> 0.8461538462 | X18: 0.86
B20: 【障害者用トイレの設置】
F21: 総施設数 | L21: 移動円滑化基準に 適合した旅客施設数 | R21: 道内における 達成率 | X21: 全国の 達成率
B22: =$B$6 -> 令和元年度 | F22: 7 | L22: 4 | R22: 0.5714285714 | X22: 0.844
B23: =$B$7 -> 令和2年度 | F23: 7 | L23: 4 | R23: 0.5714285714 | X23: 0.815
B24: =$B$8 -> 令和3年度 | F24: 11 | L24: 4 | R24: 0.3636363636 | X24: 0.697
B25: =$B$9 -> 令和4年度 | F25: 11 | L25: 4 | R25: 0.3636363636 | X25: 0.714
B26: =$B$10 -> 令和5年度 | F26: 11 | L26: 4 | R26: =L26/F26 -> 0.3636363636 | X26: 0.722
B28: （注） | D28: １． 【障害者用トイレの設置】の総施設数は、トイレを設置している旅客施設のみを計上
D29: ２． 令和２年度までは、１日当たりの平均的な利用者数が、３，０００人以上のものに限る
D30: ３． 令和３年度からは、１日当たりの平均的な利用者数が、重点整備地域内の
D31: 生活関連施設に位置づけられた２，０００人以上３，０００人未満の施設も含む
A33: （７）北海道における移動等円滑化促進方針・基本構想の作成状況
AD34: （令和6年7月31日現在）
B35: 基本構想作成済み 市町村 | G35: 基本構想変更予定 市町村 | L35: 基本構想作成予定 市町村 | Q35: 移動等円滑化促進方針 作成済み市町村 | X35: 移動等円滑化促進方針 作成予定市町村
C36: 札幌市 | H36: なし | M36: 長万部町 | S36: 長万部町 | Z36: なし
C37: 小樽市
C38: 旭川市
C39: 室蘭市
C40: 釧路市
C41: 北見市
C42: 苫小牧市
C43: 江別市
C44: 千歳市
C45: 滝川市
C46: 深川市
C47: 富良野市
C48: 恵庭市
C49: 伊達市
C50: 登別市
C51: 枝幸町
C52: 遠軽町
C53: １５市２町 | H53: なし | M53: １町 | S53: １町 | Z53: なし
B55: （注） | D55: １． 「令和6年度移動等円滑化促進方針・基本構想策定事業量調査」による

Sheet バリ２．
A1: ２．環 境 の 保 全
A3: （１） 我が国の運輸部門におけるＣＯ２排出量
B5: 【 ２０２３年度 ： 二酸化炭素（ＣＯ２）総排出量 ９億８８７２万トン 】
A28: （２） 道内における低公害車の普及台数 | AI28: （令和7年3月31日現在、単位：台）
A30: 支局 | G30: 札幌 | J30: 函館 | M30: 旭川 | P30: 室蘭 | S30: 釧路 | V30: 帯広 | Y30: 北見 | AB30: 北海道 | AF30: 全国
A31: 低公害車の種類
A32: ハイブリッド | G32: 246383 | J32: 34177 | M32: 55855 | P32: 49739 | S32: 30556 | V32: 37145 | Y32: 25362 | AB32: =SUM(G32:AA32) -> 479217 | AF32: 13657334
A33: プラグイン・ ハイブリッド | G33: 5172 | J33: 532 | M33: 1030 | P33: 827 | S33: 453 | V33: 946 | Y33: 498 | AB33: 9458 | AF33: 287803
A34: 電 気 | G34: 1798 | J34: 230 | M34: 404 | P34: 272 | S34: 216 | V34: 440 | Y34: 200 | AB34: 3560 | AF34: 221889
A35: 燃料電池 （ＦＣＶ） | G35: 28 | J35: 0 | M35: 1 | P35: 13 | S35: 0 | V35: 25 | Y35: 0 | AB35: 67 | AF35: 8672
A36: 圧縮天然ガス （ＣＮＧ） | G36: 54 | J36: 0 | M36: 1 | P36: 1 | S36: 0 | V36: 0 | Y36: 0 | AB36: 56 | AF36: 3605
A37: メタノール | G37: 1 | J37: 0 | M37: 0 | P37: 0 | S37: 0 | V37: 0 | Y37: 0 | AB37: 1 | AF37: 6
A38: 合 計 | G38: =SUM(G32:I37) -> 253436 | J38: =SUM(J32:L37) -> 34939 | M38: =SUM(M32:O37) -> 57291 | P38: =SUM(P32:R37) -> 50852 | S38: =SUM(S32:U37) -> 31225 | V38: =SUM(V32:X37) -> 38556 | Y38: =SUM(Y32:AA37) -> 26060 | AB38: =SUM(AB32:AD37) -> 492359 | AF38: =SUM(AF32:AF37) -> 14179309
A40: （注） | C40: １．一般財団法人 自動車検査登録情報協会HP資料による
A49: （３） 道内における低公害車の保有台数の推移 | V49: （R7年度）
A71: （注） | C71: １． 国土交通省自動車局（平成２６年度以前）、一般財団法人 自動車検査登録情報協会HP（平成２７年度以後）
D72: 資料による
C73: ２． 平成２４年度及び平成２６年度に種別の変更があったため、平成２３年度以前と比較し推移は連続しない
D75: 平成２３年度以前種別
E76: ◆ | F76: ハイブリッド | J76: ■ | K76: ＣＮＧ | N76: ▲ | O76: 電気自動車
D78: 平成２４・２５年度種別
E79: ◆ | F79: ハイブリッド（低燃費かつ低排出ガス認定車（１７年基準） | U79: ■ | V79: ＣＮＧ（Ｈ２１ＮＯＸ１０％低減）
E80: × | F80: プラグイン・ハイブリッド（ＰＨＶ） | O80: ▲ | P80: 電気自動車
D82: 平成２６年度種別
E83: ◆ | F83: ハイブリッド | J83: ■ | K83: ＣＮＧ | N83: × | O83: プラグイン・ハイブリッド（ＰＨＶ） | X83: ▲ | Y83: 電気自動車
D85: 平成２７年度種別
E86: ◆ | F86: ハイブリッド | J86: ■ | K86: ＣＮＧ | N86: × | O86: プラグイン・ハイブリッド（ＰＨＶ） | X86: ▲ | Y86: 電気自動車
E87: ● | F87: 燃料電池車（ＦＣＶ）
D89: 平成２８年度種別
E90: ◆ | F90: ハイブリッド | J90: ■ | K90: ＣＮＧ | N90: × | O90: プラグイン・ハイブリッド（ＰＨＶ） | X90: ▲ | Y90: 電気自動車
E91: ● | F91: 燃料電池車（ＦＣＶ）

Sheet Sheet2 (hidden)
B6: 5
B7: ↳年度の数字を入れる
B10: 更新ボタンを押した後に年度の数字を入れる
B11: 数字を入れ終わったらシートのコピーを押す
B13: 年度
B14: =B6-1 -> 4
